bitfinex/quotes_BTCUSD_20250213
["timestamp","ask_amount","ask_price","bid_price","bid_amount"]
[1739432489892,7e-08,96154.0,96153.0,0.34862486]
[1739432490753,7e-08,96154.0,96153.0,0.35162486]
[1739432491729,7e-08,96154.0,96153.0,0.34862486]
[1739432492168,7e-08,96154.0,96153.0,0.35562486]
[1739432492380,7e-08,96154.0,96153.0,0.37062486]
[1739432492582,7e-08,96154.0,96153.0,1.24412486]
[1739432493153,0.00022366,96184.0,96158.0,0.17561686]
[1739432493352,0.00022366,96184.0,96168.0,0.34860086]
[1739432494012,0.0475,96179.0,96168.0,0.34860086]
[1739432494216,0.0475,96179.0,96168.0,0.338977]
[1739432494446,0.0794,96170.0,96168.0,0.305977]
[1739432494636,0.0794,96170.0,96168.0,0.32560086]
[1739432494838,0.0794,96170.0,96168.0,0.315977]
[1739432495039,0.0794,96170.0,96168.0,0.32560086]
[1739432495200,0.0794,96170.0,96168.0,0.34860086]
[1739432495381,0.0794,96170.0,96168.0,0.35560086]
[1739432495595,0.14950365,96169.0,96168.0,0.017]
[1739432495806,0.14950365,96169.0,96168.0,0.007]
[1739432496006,0.16109104,96169.0,96168.0,0.019]
[1739432496226,0.16109104,96169.0,96168.0,0.024]
[1739432496630,0.16109104,96169.0,96168.0,0.165977]
[1739432497170,0.16109104,96169.0,96168.0,0.172977]
[1739432497733,0.05858739,96169.0,96168.0,0.18260086]
[1739432497962,0.01198739,96169.0,96168.0,0.18260086]
[1739432498160,0.0004,96169.0,96168.0,0.18260086]
[1739432498362,0.0004,96169.0,96168.0,0.17760086]
[1739432498538,0.0004,96169.0,96168.0,0.17560086]
[1739432500438,0.0005065,96169.0,96168.0,0.17560086]
[1739432507554,0.10301015,96169.0,96168.0,0.01962386]
[1739432507770,0.18531015,96169.0,96168.0,0.01962386]
[1739432508003,0.19689599,96169.0,96168.0,0.01962386]
[1739432508262,0.19689599,96169.0,96168.0,0.00962386]
[1739432508720,0.18531015,96169.0,96168.0,0.00962386]
[1739432508870,0.19689599,96169.0,96168.0,0.00962386]
[1739432509083,0.19689599,96169.0,96168.0,0.01962386]
[1739432509254,0.19689599,96169.0,96168.0,0.00962386]
[1739432509892,0.19689599,96169.0,96164.0,0.01]
[1739432510105,0.09439234,96169.0,96168.0,0.00962386]
[1739432510906,0.09439234,96169.0,96168.0,0.16560086]
[1739432511135,0.0828065,96169.0,96168.0,0.00962386]
[1739432511339,0.09439234,96169.0,96168.0,0.00962386]
[1739432511955,0.09439234,96169.0,96168.0,0.16560086]
[1739432512181,0.19689599,96169.0,96168.0,0.16560086]
[1739432512804,0.19689599,96169.0,96168.0,0.00962386]
[1739432512979,0.19689599,96169.0,96165.0,0.15598]
[1739432513182,0.10250365,96168.0,96167.0,0.00962386]
[1739432513581,0.11408945,96168.0,96167.0,0.00962386]
[1739432513788,0.155985,96163.0,96162.0,0.01]
[1739432513985,0.28049,96160.0,96159.0,0.00022365]
[1739432514188,0.59209142,96160.0,96159.0,0.00022365]
[1739432514389,0.155999,96154.0,96133.0,0.01]
[1739432514645,0.38550265,96154.0,96125.0,0.01]
[1739432514799,0.39900829,96154.0,96124.0,0.156047]
[1739432515004,0.54900829,96154.0,96118.0,0.08332118]
[1739432515372,0.283035,96132.0,96118.0,0.08332118]
[1739432515579,0.38553865,96132.0,96131.0,0.00035574]
[1739432515780,0.39904441,96132.0,96131.0,0.00035574]
[1739432517709,0.40104441,96132.0,96131.0,0.00135574]
[1739432522693,0.42236341,96132.0,96131.0,0.00135574]
[1739432523723,0.42036341,96132.0,96131.0,0.00035574]
[1739432523946,0.42136341,96132.0,96131.0,0.00135574]
[1739432524466,0.42036341,96132.0,96131.0,0.00035574]
[1739432524963,0.42136341,96132.0,96131.0,0.00135574]
[1739432525390,0.42136341,96132.0,96131.0,0.00235574]
[1739432528237,0.9779592,96132.0,96131.0,0.00235574]
[1739432528994,0.89973955,96132.0,96131.0,0.00235574]
[1739432530536,0.93037522,96132.0,96131.0,0.00235574]
[1739432530945,0.89973955,96132.0,96131.0,0.00235574]
[1739432532060,0.89973955,96132.0,96131.0,7.4e-07]
[1739432532288,0.89973955,96132.0,96118.0,0.08332118]
[1739432532289,0.427356,96119.0,96118.0,0.04268564]
[1739432532489,0.52985965,96119.0,96118.0,0.04268564]
[1739432532709,0.54340928,96119.0,96118.0,0.04268564]
[1739432532890,0.54340928,96119.0,96108.0,0.08332118]
[1739432532891,0.156072,96109.0,96108.0,0.08332118]
[1739432533119,0.33367565,96109.0,96108.0,0.08332118]
[1739432533320,0.33367565,96109.0,96097.0,0.08332118]
[1739432533321,0.15609,96098.0,96097.0,0.08332118]
[1739432533539,0.25859365,96098.0,96097.0,0.08332118]
[1739432533712,0.156097,96094.0,96085.0,0.01]
[1739432533919,0.25860065,96094.0,96079.0,0.00144691]
[1739432534088,0.27214914,96094.0,96079.0,0.00144691]
[1739432534491,0.27214914,96094.0,96093.0,0.00066395]
[1739432534669,0.35154914,96094.0,96093.0,0.00066395]
[1739432535277,0.35454914,96094.0,96093.0,0.00066395]
[1739432536221,0.36154914,96094.0,96093.0,0.00166395]
[1739432537514,0.38253995,96094.0,96093.0,0.00166395]
[1739432538056,0.39310262,96094.0,96093.0,0.00166395]
[1739432538217,0.38253995,96094.0,96093.0,0.00166395]
[1739432540542,0.14704295,96094.0,96093.0,0.00166395]
[1739432541106,0.14704295,96094.0,96093.0,0.15776195]
[1739432541369,0.14704295,96094.0,96093.0,0.00166395]
[1739432542624,0.13349446,96094.0,96093.0,0.00166395]
[1739432542882,0.14697875,96094.0,96093.0,0.00166395]
[1739432543988,0.14697875,96094.0,96093.0,0.15776195]
[1739432544434,0.12598794,96094.0,96093.0,0.16776195]
[1739432544642,0.02348429,96094.0,96093.0,0.32858581]
[1739432544863,0.01,96094.0,96093.0,0.32858581]
[1739432545070,0.01,96094.0,96093.0,0.47858581]
[1739432545273,0.003,96094.0,96093.0,0.47758581]
[1739432545685,0.09323951,96119.0,96114.0,0.156064]
[1739432545877,0.25856265,96118.0,96112.0,0.156067]
[1739432546082,0.10250365,96118.0,96110.0,0.08692386]
[1739432546387,0.156059,96117.0,96110.0,0.08692386]
[1739432546589,0.09323951,96137.0,96132.0,0.01]
[1739432546718,0.10250365,96135.0,96133.0,0.00788]
[1739432546924,0.10250365,96135.0,96132.0,0.01]
[1739432547122,0.09323951,96137.0,96135.0,0.01]
[1739432547363,0.09323951,96137.0,96135.0,0.17391]
[1739432547590,0.09323951,96137.0,96135.0,0.16603]
[1739432547749,0.02013191,96136.0,96135.0,0.16603]
[1739432547952,0.02013191,96136.0,96134.0,0.00962386]
[1739432547953,0.12263556,96136.0,96134.0,0.00962386]
[1739432548193,0.10250365,96135.0,96134.0,0.17565586]
[1739432548961,0.10250365,96135.0,96134.0,0.00962386]
[1739432549164,0.10250365,96135.0,96134.0,0.01962386]
[1739432549380,0.10550365,96135.0,96134.0,0.00962386]
[1739432549641,0.10550365,96135.0,96134.0,0.01962386]
[1739432550222,0.10550365,96135.0,96134.0,0.00962386]
[1739432550427,0.10550365,96135.0,96134.0,0.01962386]
[1739432550630,0.10550365,96135.0,96134.0,0.17565586]
[1739432550981,0.10550365,96135.0,96134.0,0.01962386]
[1739432551155,0.10550365,96135.0,96134.0,0.00962386]
[1739432551359,0.10550365,96135.0,96134.0,0.01962386]
[1739432554960,0.26153365,96135.0,96134.0,0.01962386]
[1739432556180,0.10550365,96135.0,96134.0,0.01962386]
[1739432559138,0.10561025,96135.0,96134.0,0.01962386]
[1739432560077,0.10561025,96135.0,96134.0,0.17565586]
[1739432560401,0.10561025,96135.0,96134.0,0.01962386]
[1739432560614,0.10561025,96135.0,96134.0,0.17565586]
[1739432560820,0.11920083,96135.0,96134.0,0.17565586]
[1739432566591,0.11920083,96135.0,96134.0,0.01962386]
[1739432567979,0.27523083,96135.0,96134.0,0.01962386]
[1739432568176,0.11920083,96135.0,96134.0,0.01962386]
[1739432570249,0.11920083,96135.0,96134.0,0.17565586]
[1739432570735,0.10561025,96135.0,96134.0,0.17565586]
[1739432571112,0.11920106,96135.0,96134.0,0.17565586]
[1739432577281,0.11920106,96135.0,96134.0,0.01962386]
[1739432578163,0.11920106,96135.0,96134.0,0.17565586]
[1739432578574,0.10561025,96135.0,96134.0,0.01962386]
[1739432578814,0.11920261,96135.0,96134.0,0.01962386]
[1739432579736,0.11920261,96135.0,96134.0,0.17565586]
[1739432580591,0.11920261,96135.0,96134.0,0.01962386]
[1739432580792,0.11920261,96135.0,96123.0,0.01]
[1739432580993,0.156043,96127.0,96125.0,0.01]
[1739432581199,0.10250365,96126.0,96124.0,0.01]
[1739432581440,0.11609531,96126.0,96125.0,0.01962386]
[1739432582180,0.11609531,96126.0,96125.0,0.02062386]
[1739432582390,0.11609531,96126.0,96125.0,0.01962386]
[1739432583172,0.11609531,96126.0,96125.0,0.01]
[1739432583384,0.11609531,96126.0,96124.0,0.01]
[1739432583592,0.27214031,96126.0,96121.0,0.01]
[1739432583805,0.27214031,96126.0,96125.0,0.005]
[1739432584010,0.27214031,96126.0,96125.0,0.004]
[1739432584210,0.11609531,96126.0,96121.0,0.01]
[1739432584607,0.27414031,96126.0,96121.0,0.01]
[1739432585057,0.27514031,96126.0,96121.0,0.01]
[1739432585261,0.27514031,96126.0,96119.0,0.156055]
[1739432585544,0.11909531,96126.0,96125.0,0.01962386]
[1739432586116,0.11709531,96126.0,96125.0,0.17566986]
[1739432586515,0.10350365,96126.0,96125.0,0.17566986]
[1739432586910,0.10250365,96126.0,96125.0,0.17566986]
[1739432587263,0.10550365,96126.0,96125.0,0.17566986]
[1739432588491,0.003,96126.0,96125.0,0.17566986]
[1739432589171,0.003,96126.0,96125.0,0.27536986]
[1739432589322,0.003,96126.0,96125.0,0.32136986]
[1739432590132,0.001,96126.0,96125.0,0.32136986]
[1739432590585,0.0001066,96135.0,96134.0,0.156032]
[1739432590721,0.10261025,96135.0,96134.0,0.156032]
[1739432591126,0.10261025,96135.0,96134.0,0.16565586]
[1739432592604,0.10361025,96135.0,96134.0,0.16565586]
[1739432597143,0.10361025,96135.0,96134.0,0.00962386]
[1739432597558,0.11720666,96135.0,96134.0,0.00962386]
[1739432598191,0.11720666,96135.0,96134.0,0.01]
[1739432598812,0.11720666,96135.0,96134.0,0.17565586]
[1739432599588,0.10361025,96135.0,96134.0,0.17565586]
[1739432600735,0.11721094,96135.0,96134.0,0.17565586]
[1739432601339,0.10361025,96135.0,96134.0,0.17565586]
[1739432602249,0.11721067,96135.0,96134.0,0.17565586]
[1739432603697,0.01470702,96135.0,96134.0,0.19865586]
[1739432603917,0.0011066,96135.0,96134.0,0.27465586]
[1739432617996,0.0011066,96135.0,96134.0,0.19865586]
[1739432629060,0.10361025,96135.0,96134.0,0.166032]
[1739432629419,0.10361025,96135.0,96134.0,0.17565586]
[1739432631639,0.10361025,96135.0,96134.0,0.01962386]
[1739432632016,0.11722695,96135.0,96134.0,0.00962386]
[1739432632437,0.11722695,96135.0,96133.0,0.01]
[1739432632609,0.156033,96133.0,96131.0,0.01]
[1739432632818,0.31055065,96132.0,96123.0,0.00962386]
[1739432633013,0.11612081,96132.0,96126.0,0.00962386]
[1739432633226,0.11612081,96132.0,96130.0,0.00962386]
[1739432633630,0.11612081,96132.0,96131.0,0.01]
[1739432633796,0.11612081,96132.0,96131.0,0.001]
[1739432634000,0.156044,96127.0,96121.0,0.01962386]
[1739432634217,0.10250365,96126.0,96125.0,0.01962386]
[1739432634467,0.11611108,96126.0,96125.0,0.00962386]
[1739432634945,0.11611108,96126.0,96124.0,0.01962386]
[1739432636265,0.11611108,96126.0,96121.0,0.012]
[1739432636463,0.11611108,96126.0,96123.0,0.00962386]
[1739432636884,0.11611108,96126.0,96125.0,0.01]
[1739432637216,0.11611108,96126.0,96125.0,0.17566986]
[1739432637583,0.11611108,96126.0,96125.0,0.00962386]
[1739432637789,0.156047,96125.0,96119.0,0.156056]
[1739432638005,0.10250365,96124.0,96119.0,0.166056]
[1739432638202,0.11609841,96124.0,96123.0,0.01962386]
[1739432638404,0.11609841,96124.0,96123.0,0.00962386]
[1739432639054,0.11609841,96124.0,96123.0,0.01962386]
[1739432639255,0.11609841,96124.0,96123.0,0.17567386]
[1739432639954,0.10250365,96124.0,96123.0,0.01962386]
[1739432640146,0.10250365,96124.0,96121.0,0.20807]
[1739432640147,0.10250365,96124.0,96122.0,0.01]
[1739432640349,0.11609841,96124.0,96119.0,0.002]
[1739432640692,0.11609841,96124.0,96120.0,0.01]
[1739432640823,0.11709841,96124.0,96123.0,0.17567386]
[1739432641387,0.11609841,96124.0,96123.0,0.17567386]
[1739432641605,0.11609841,96124.0,96123.0,0.01962386]
[1739432641996,0.27214641,96124.0,96123.0,0.01]
[1739432642304,0.156054,96120.0,96119.0,0.002]
[1739432642519,0.25855765,96120.0,96119.0,0.002]
[1739432642708,0.27215219,96120.0,96119.0,0.002]
[1739432642918,0.11609819,96120.0,96118.0,0.00022386]
[1739432643214,0.25855965,96119.0,96118.0,0.00022386]
[1739432643509,0.27214917,96119.0,96118.0,0.00022386]
[1739432644133,0.11609317,96119.0,96118.0,0.01084772]
[1739432644427,0.27214917,96119.0,96118.0,0.01084772]
[1739432644799,0.27214917,96119.0,96118.0,0.01384772]
[1739432645204,0.11609317,96119.0,96118.0,0.01384772]
[1739432645852,0.27214917,96119.0,96118.0,0.01484772]
[1739432646152,0.27214917,96119.0,96118.0,0.00522386]
[1739432646353,0.11609317,96119.0,96118.0,0.00522386]
[1739432646928,0.27214917,96119.0,96118.0,0.00522386]
[1739432648579,0.11609317,96119.0,96118.0,0.00522386]
[1739432648904,0.11609317,96119.0,96118.0,0.01484772]
[1739432650064,0.11609317,96119.0,96118.0,0.17090572]
[1739432651028,0.11609317,96119.0,96118.0,0.01484772]
[1739432651248,0.11609317,96119.0,96118.0,0.17090572]
[1739432652936,0.11609317,96119.0,96118.0,0.01484772]
[1739432654384,0.27214917,96119.0,96118.0,0.01484772]
[1739432655530,0.27214917,96119.0,96118.0,0.00522386]
[1739432655711,0.27214917,96119.0,96118.0,0.01484772]
[1739432656813,0.11609317,96119.0,96118.0,0.01484772]
[1739432657350,0.11609317,96119.0,96118.0,0.00522386]
[1739432661336,0.11609317,96119.0,96118.0,0.00222386]
[1739432661721,0.12609317,96119.0,96118.0,0.00122386]
[1739432661942,0.12909317,96119.0,96118.0,0.00122386]
[1739432662146,0.25589317,96119.0,96118.0,0.00122386]
[1739432662744,0.27635425,96119.0,96118.0,0.00122386]
[1739432662972,0.43241025,96119.0,96118.0,0.00122386]
[1739432663167,0.43251685,96119.0,96118.0,0.00122386]
[1739432668015,0.58251685,96119.0,96118.0,0.00122386]
[1739432669011,0.57251685,96119.0,96118.0,0.00022386]
[1739432669193,0.58251685,96119.0,96118.0,0.00122386]
[1739432669768,0.58651685,96119.0,96118.0,0.00122386]
[1739432672536,0.67975636,96119.0,96118.0,0.00122386]
[1739432679707,0.58651685,96119.0,96118.0,0.00122386]
[1739432688852,0.50641685,96119.0,96118.0,0.00122386]
[1739432689105,0.45971685,96119.0,96118.0,0.00122386]
[1739432696613,0.47013514,96119.0,96118.0,0.00122386]
[1739432696818,0.59691128,96119.0,96118.0,0.00122386]
[1739432698064,0.58649299,96119.0,96118.0,0.00122386]
[1739432698318,0.56949299,96119.0,96118.0,0.00022386]
[1739432698489,0.59049299,96119.0,96118.0,0.00122386]
[1739432700583,0.91811685,96119.0,96118.0,0.00122386]
[1739432700935,0.79171685,96119.0,96118.0,0.00122386]
[1739432701168,0.64171685,96119.0,96118.0,0.00122386]
[1739432701555,0.79171685,96119.0,96118.0,0.00122386]
[1739432701716,0.64171685,96119.0,96118.0,0.00122386]
[1739432702147,0.77771685,96119.0,96118.0,0.00122386]
[1739432702347,0.78471685,96119.0,96118.0,0.00022386]
[1739432702542,0.79171685,96119.0,96118.0,0.00122386]
[1739432703770,0.48566085,96119.0,96118.0,0.00122386]
[1739432704025,0.13719977,96119.0,96118.0,0.15728186]
[1739432704459,0.0751658,96119.0,96118.0,0.15728186]
[1739432704673,0.2312218,96119.0,96118.0,0.00122386]
[1739432704859,0.21763228,96119.0,96118.0,0.00122386]
[1739432705030,0.23117121,96119.0,96118.0,0.00122386]
[1739432709983,0.38117121,96119.0,96118.0,0.00122386]
[1739432710189,0.45987121,96119.0,96118.0,0.00122386]
[1739432710782,0.46024735,96119.0,96118.0,0.00122386]
[1739432715109,0.78824735,96119.0,96118.0,0.00122386]
[1739432715677,0.77424735,96119.0,96118.0,0.00122386]
[1739432715872,0.76724735,96119.0,96118.0,0.00022386]
[1739432717100,0.78224735,96119.0,96118.0,0.00022386]
[1739432717333,0.78924735,96119.0,96118.0,0.00022386]
[1739432717566,0.77424735,96119.0,96118.0,0.00022386]
[1739432717844,0.78887121,96119.0,96118.0,0.00022386]
[1739432718021,0.78924735,96119.0,96118.0,0.00022386]
[1739432735595,0.78924735,96119.0,96118.0,8.6e-07]
[1739432739751,0.82989881,96119.0,96118.0,8.6e-07]
[1739432741453,0.78924735,96119.0,96118.0,8.6e-07]
[1739432757723,0.15,96105.0,96094.0,0.08332118]
[1739432757931,0.40859865,96095.0,96094.0,0.04402118]
[1739432758335,0.40859865,96095.0,96093.0,0.00022365]
[1739432758336,0.306097,96094.0,96093.0,0.00022365]
[1739432758582,0.40860065,96094.0,96093.0,0.00022365]
[1739432758923,0.42207385,96094.0,96093.0,0.00066395]
[1739432759130,0.42207385,96094.0,96093.0,0.04656395]
[1739432760544,0.42607385,96094.0,96093.0,0.04656395]
[1739432760690,0.44007385,96094.0,96093.0,0.04656395]
[1739432760894,0.43607385,96094.0,96093.0,0.04656395]
[1739432761259,0.42607385,96094.0,96093.0,0.04656395]
[1739432761479,0.44007385,96094.0,96093.0,0.04656395]
[1739432762016,0.13397685,96094.0,96093.0,0.12476395]
[1739432762438,0.29007385,96094.0,96093.0,0.12476395]
[1739432768954,0.29018045,96094.0,96093.0,0.12476395]
[1739432774966,0.13408345,96094.0,96093.0,0.12476395]
[1739432775141,0.13408345,96094.0,96093.0,0.30048581]
[1739432775349,0.12061025,96094.0,96093.0,0.30048581]
[1739432775969,0.10661025,96094.0,96093.0,0.30048581]
[1739432776473,0.11761025,96094.0,96093.0,0.30048581]
[1739432776703,0.10661025,96094.0,96093.0,0.30048581]
[1739432777016,0.11361025,96094.0,96093.0,0.30048581]
[1739432777221,0.11461025,96094.0,96093.0,0.30048581]
[1739432777426,0.12807282,96094.0,96093.0,0.30048581]
[1739432777736,0.28416982,96094.0,96093.0,0.12476395]
[1739432778741,0.12807282,96094.0,96093.0,0.13438781]
[1739432779068,0.12807282,96094.0,96093.0,0.12476395]
[1739432779484,0.28416982,96094.0,96093.0,0.12476395]
[1739432783771,0.12807282,96094.0,96093.0,0.12476395]
[1739432783975,0.12807282,96094.0,96093.0,0.28086195]
[1739432784385,0.11461025,96094.0,96093.0,0.28086195]
[1739432785424,0.12808767,96094.0,96093.0,0.28086195]
[1739432785710,0.12808767,96094.0,96093.0,0.29086195]
[1739432785926,0.22158745,96094.0,96093.0,0.29086195]
[1739432787447,0.22158745,96094.0,96093.0,0.28968518]
[1739432788248,0.12808767,96094.0,96093.0,0.28968518]
[1739432791783,0.12808767,96094.0,96093.0,0.29930904]
[1739432791988,0.11461025,96094.0,96093.0,0.29930904]
[1739432792201,0.11461025,96094.0,96093.0,0.29953269]
[1739432795523,0.0121066,96094.0,96093.0,0.29953269]
[1739432795742,0.0121066,96094.0,96093.0,0.32253269]
[1739432796563,0.0001066,96094.0,96093.0,0.32253269]
[1739432797007,0.0001066,96094.0,96093.0,0.32353269]
[1739432797710,0.0001066,96094.0,96093.0,0.32253269]
[1739432797850,0.0001066,96094.0,96093.0,0.32353269]
[1739432798486,0.0091066,96094.0,96093.0,0.32353269]
[1739432798913,0.0001066,96094.0,96093.0,0.32353269]
[1739432799701,0.0091066,96094.0,96093.0,0.32353269]
[1739432800109,0.0001066,96094.0,96093.0,0.32353269]
[1739432800375,0.0001066,96094.0,96093.0,0.32253269]
[1739432800569,0.0011066,96094.0,96093.0,0.32453269]
[1739432801627,0.0011066,96094.0,96093.0,0.65153269]
[1739432818236,0.0011066,96094.0,96093.0,0.50494551]
[1739432819289,0.0011066,96094.0,96093.0,0.17794551]
[1739432832356,0.0011066,96094.0,96093.0,0.16794551]
[1739432832555,0.10361025,96094.0,96093.0,0.01184751]
[1739432833422,0.1161189,96094.0,96093.0,0.00984751]
[1739432833632,0.1161189,96094.0,96093.0,0.01084751]
[1739432833831,0.1221189,96094.0,96093.0,0.00984751]
[1739432834307,0.1161189,96094.0,96093.0,0.01084751]
[1739432834467,0.1231189,96094.0,96093.0,0.01084751]
[1739432834879,0.2792159,96094.0,96093.0,0.00122365]
[1739432836255,0.1231189,96094.0,96093.0,0.01084751]
[1739432836990,0.2792159,96094.0,96093.0,0.00122365]
[1739432837190,0.4043159,96094.0,96093.0,0.00122365]
[1739432841259,0.49781568,96094.0,96093.0,0.00122365]
[1739432843312,0.21661868,96094.0,96093.0,0.15732165]
[1739432843869,0.20311003,96094.0,96093.0,0.00122365]
[1739432844078,0.21660004,96094.0,96093.0,0.15732165]
[1739432844420,0.12310026,96094.0,96093.0,0.15732165]
[1739432844627,0.12310026,96094.0,96093.0,0.00122365]
[1739432846203,0.12310026,96094.0,96093.0,0.15732165]
[1739432846404,0.12310026,96094.0,96093.0,0.16732165]
[1739432846615,0.10961025,96094.0,96093.0,0.16732165]
[1739432847221,0.10961025,96094.0,96093.0,0.17788473]
[1739432847933,0.0071066,96094.0,96093.0,0.28820859]
[1739432848077,0.0071066,96094.0,96093.0,0.33500859]
[1739432848914,0.0001066,96094.0,96093.0,0.33500859]
[1739432849115,0.0011066,96094.0,96093.0,0.33500859]
[1739432849294,0.0021066,96094.0,96093.0,0.33700859]
[1739432852633,0.0021066,96094.0,96093.0,0.48700859]
[1739432852831,0.0021066,96094.0,96093.0,0.58951224]
[1739432853844,0.0021066,96094.0,96093.0,0.91651224]
[1739432856632,0.0021066,96094.0,96093.0,0.81400859]
[1739432858348,0.0021066,96094.0,96093.0,0.80438473]
[1739432858555,0.0021066,96094.0,96093.0,0.81400859]
[1739432859170,0.0021066,96094.0,96093.0,0.80438473]
[1739432859376,0.0021066,96094.0,96093.0,0.81400859]
[1739432866262,0.0021066,96094.0,96093.0,0.91651224]
[1739432866965,0.0501066,96120.0,96118.0,0.156058]
[1739432867157,0.0501066,96120.0,96118.0,0.17568186]
[1739432867358,0.01362037,96119.0,96118.0,0.1767221]
[1739432867493,0.0001066,96119.0,96118.0,0.17568186]
[1739432868343,0.0121066,96119.0,96118.0,0.17568186]
[1739432868548,0.0121066,96119.0,96118.0,0.19972213]
[1739432868549,0.0131066,96119.0,96118.0,0.19972213]
[1739432868747,0.0131066,96119.0,96118.0,0.19868186]
[1739432868982,0.0131066,96119.0,96118.0,0.18868186]
[1739432869166,0.0131066,96119.0,96118.0,0.19868186]
[1739432869750,0.0121066,96119.0,96118.0,0.19868186]
[1739432870102,0.0121066,96119.0,96118.0,0.20268186]
[1739432870958,0.0001066,96119.0,96118.0,0.20268186]
[1739432871453,0.0001066,96119.0,96118.0,0.20368186]
[1739432873878,0.0001066,96119.0,96118.0,0.194058]
[1739432874102,0.0001066,96119.0,96118.0,0.20368186]
[1739432874276,0.0001066,96119.0,96118.0,0.194058]
[1739432874740,0.0001066,96119.0,96118.0,0.20368186]
[1739432874932,0.0001066,96119.0,96118.0,0.19868186]
[1739432875132,0.0001066,96119.0,96118.0,0.20168186]
[1739432875361,0.0041066,96119.0,96118.0,0.20168186]
[1739432875568,0.0041066,96119.0,96118.0,0.19868186]
[1739432875779,0.0041066,96119.0,96118.0,0.20168186]
[1739432876744,0.0001066,96119.0,96118.0,0.20168186]
[1739432876920,0.0031066,96119.0,96118.0,0.20168186]
[1739432883005,0.0031066,96119.0,96118.0,0.192058]
[1739432883226,0.0001066,96119.0,96118.0,0.192058]
[1739432883446,0.0001066,96119.0,96118.0,0.20168186]
[1739432883664,0.0031066,96119.0,96118.0,0.192058]
[1739432883867,0.10561025,96119.0,96118.0,0.02262386]
[1739432884072,0.33946625,96119.0,96118.0,0.003]
[1739432884269,0.35230884,96119.0,96118.0,0.003]
[1739432884410,0.156058,96118.0,96114.0,0.00962386]
[1739432884613,0.10250365,96117.0,96114.0,0.00962386]
[1739432884823,0.27140565,96117.0,96114.0,0.00962386]
[1739432886121,0.11734565,96117.0,96114.0,0.00962386]
[1739432886462,0.156061,96116.0,96114.0,0.00962386]
[1739432886627,0.10250365,96115.0,96114.0,0.00962386]
[1739432886838,0.11534638,96115.0,96114.0,0.00962386]
[1739432887050,0.11534638,96115.0,96114.0,0.01062386]
[1739432887411,0.11534638,96115.0,96114.0,0.00962386]
[1739432887842,0.12834638,96115.0,96114.0,0.01062386]
[1739432889254,0.13034638,96115.0,96114.0,0.01062386]
[1739432890565,0.28640938,96115.0,96114.0,0.001]
[1739432891549,0.13034638,96115.0,96114.0,0.001]
[1739432891753,0.28640938,96115.0,96114.0,0.001]
[1739432893659,0.13034638,96115.0,96114.0,0.001]
[1739432894222,0.28640938,96115.0,96114.0,0.001]
[1739432896079,0.33170938,96115.0,96114.0,0.001]
[1739432896938,0.16264638,96115.0,96111.0,0.00962386]
[1739432897133,0.32071038,96115.0,96111.0,0.00962386]
[1739432897338,0.33371038,96115.0,96114.0,0.001]
[1739432897813,0.156064,96114.0,96111.0,0.00962386]
[1739432898092,0.10250365,96113.0,96111.0,0.00962386]
[1739432898298,0.156067,96112.0,96111.0,0.00962386]
[1739432898527,0.27139161,96112.0,96111.0,0.00962386]
[1739432898654,0.27139161,96112.0,96111.0,0.01062386]
[1739432899263,0.11532461,96112.0,96111.0,0.01062386]
[1739432900119,0.11532461,96112.0,96111.0,0.00962386]
[1739432900333,0.12632461,96112.0,96111.0,0.01062386]
[1739432900554,0.12732461,96112.0,96111.0,0.01062386]
[1739432901517,0.28339161,96112.0,96111.0,0.01062386]
[1739432902964,0.12732461,96112.0,96111.0,0.01062386]
[1739432903662,0.12732461,96112.0,96111.0,0.16669286]
[1739432904286,0.12732461,96112.0,96111.0,0.17699648]
[1739432904503,0.12732461,96112.0,96111.0,0.18699648]
[1739432904631,0.11450365,96112.0,96111.0,0.18699648]
[1739432904833,0.11450365,96112.0,96111.0,0.02062386]
[1739432905176,0.12732882,96112.0,96111.0,0.02062386]
[1739432905385,0.12732882,96112.0,96111.0,0.17669286]
[1739432905743,0.11450365,96112.0,96111.0,0.18690303]
[1739432908673,0.012,96112.0,96111.0,0.18690303]
[1739432908851,0.012,96112.0,96111.0,0.26210303]
[1739432909434,0.012,96112.0,96111.0,0.28151389]
[1739432911848,0.012,96112.0,96111.0,0.30451389]
[1739432914323,0.0001065,96115.0,96114.0,0.16568786]
[1739432914523,0.0001065,96115.0,96114.0,0.1897281]
[1739432915722,0.0001065,96115.0,96114.0,0.34753896]
[1739432915934,0.0001065,96115.0,96114.0,0.34649872]
[1739432916127,0.0001065,96115.0,96114.0,0.34749872]
[1739432917233,0.0081065,96115.0,96114.0,0.34849872]
[1739432917442,0.0081065,96115.0,96114.0,0.67549872]
[1739432919381,0.0081065,96115.0,96114.0,0.65608786]
[1739432931952,0.0081065,96115.0,96114.0,0.65508786]
[1739432932439,0.0081065,96115.0,96114.0,0.65908786]
[1739432932664,0.0001065,96115.0,96114.0,0.65908786]
[1739432932858,0.0001065,96115.0,96114.0,0.66208786]
[1739432944042,0.0001065,96115.0,96114.0,0.69447129]
[1739432955411,0.0001065,96115.0,96114.0,0.64467129]
[1739432957552,0.0001065,96115.0,96114.0,0.79467129]
[1739432958652,7e-07,96120.0,96119.0,0.32567986]
[1739432958846,0.0001066,96135.0,96134.0,0.27805586]
[1739432959049,6e-07,96135.0,96134.0,0.78743929]
[1739432960346,0.00044063,96135.0,96134.0,0.78743929]
[1739432961202,0.00044063,96135.0,96134.0,0.79043929]
[1739432961410,0.00044063,96135.0,96134.0,0.78743929]
[1739432961748,0.00044063,96135.0,96134.0,0.79243929]
[1739432961925,0.00044063,96135.0,96134.0,0.79643929]
[1739432963537,0.00044063,96135.0,96134.0,0.76405586]
[1739432964176,0.0001065,96153.0,96152.0,0.17562586]
[1739432964370,0.00023844,96153.0,96152.0,0.34966558]
[1739432964603,0.00023844,96153.0,96152.0,0.34862586]
[1739432965301,0.00023844,96153.0,96152.0,0.346002]
[1739432965502,0.00123844,96153.0,96152.0,0.348002]
[1739432965737,0.00123844,96153.0,96152.0,0.351002]
[1739432965938,0.00123844,96153.0,96152.0,0.358002]
[1739432966124,0.00123844,96153.0,96152.0,0.21762586]
[1739432966336,0.00123844,96153.0,96152.0,0.21062586]
[1739432967476,0.00123844,96153.0,96152.0,0.18762586]
[1739432967674,0.00023844,96153.0,96152.0,0.18162586]
[1739432967881,0.00023844,96153.0,96152.0,0.17562586]
[1739432968130,0.00123844,96153.0,96152.0,0.18666577]
[1739432968335,0.00123844,96153.0,96152.0,0.21166577]
[1739432968533,0.00023844,96153.0,96152.0,0.20062586]
[1739432968751,0.00023844,96153.0,96152.0,0.20166568]
[1739432968978,0.00423844,96153.0,96152.0,0.20166568]
[1739432970062,0.00423844,96153.0,96152.0,0.20062586]
[1739432970272,0.00423844,96153.0,96152.0,0.20166565]
[1739432975127,0.00423844,96153.0,96152.0,0.20062586]
[1739432976699,0.00423844,96153.0,96152.0,0.35166557]
[1739432976829,0.00423844,96153.0,96152.0,0.35062586]